Workbook

Sheet 1040 Page 1
A1: Form | B1: 1040 | D1: Department of the Treasury––Internal Revenue Service (99) | P1: 2014 | U1: 41639
D2: U.S. Individual Income Tax Return | T2: OMB No. 1545-0074 | X2: Do not write or staple in this space
B3: For the year Jan. 1--Dec. 31, 2014, or other tax year beginning | Q3: , ending | X3: See separate instructions.
B4: Your first name and initial | I4: Last name | X4: Your social security number
A5: JOHN A. | I5: DOE | X5: 111111111
B6: If joint return, spouse's name & initial | I6: Last name | X6: Spouse's social security number
A7: JANE B. | I7: DOE | X7: 222222222
B8: Home address (number and street). If you have a P.O. box, see instructions. | U8: Apt. no. | Z8: Make sure the SSN(s) above and on line 6c are correct.
A9: 123 STATE ST. | U9: 14
B10: City, town or post office, state, and ZIP code. If you have a foreign address, also complete spaces below (see instructions). | X10: Presidential Election Campaign
A11: PROVO, UT, 84606 | X11: Check here if you, or your spouse if filing jointly, want $3 to go to this fund. Checking a box below will not change your tax or
B12: Foreign country name | M12: Foreign province/state/county | S12: Foreign postal code
X13: refund. | AB13: You | AE13: Spouse
A16: Filing Status | C16: 1 | E16: Single | L16: CHECK ONE BOX ( Use 'X' ) | S16: 4 | U16: Head of household (with qualifying person). (See instructions.) If
C18: 2 | D18: X | E18: Married filing joint return (even if only one had income) | U18: the qualifying person is a child but not your dependent, enter
A20: Check only one | C20: 3 | E20: Married filing separate return. Enter spouse's SSN above | U20: this child’s name here.
A21: box. | E21: and full name here. | S21: 5 | U21: Qualifying widow(er) with dependent child
AA23: Boxes checked on 6a and 6b.
C24: 6a | D24: X | E24: Yourself. | G24: If someone can claim you as a dependent, do not check box 6a . . . . . . . . . . . . . . . . . . . . . . . . . . . . . . . | AF24: =COUNTIF(D24:D26,"X") -> 2
AA25: No. of children on 6c who:
A26: Exemptions | C26: b | D26: X | E26: Spouse . . . . . . . . . . . . . . . . . . . . . . . . . . . . . . . . . . . . . . . . . . . . | AF26: =COUNTIF(X30:X33,"X") -> 1
C27: c | D27: Dependents: | N27: (2) Dependent's | S27: (3) Dependent's | V27: (4) üif child under age 17 | AA27: • lived with you
N28: social security | S28: relationship to | V28: qualifying for child tax credit | AA28: • did not live with
A29: If more than four | D29: (1) First name | G29: Last name | N29: number | S29: you | X29: (See instructions.) | AA29: you due to divorce or separation (see instructions)
A30: dependents, see | D30: JAMES C. DOE | N30: 333333333 | R30: Son | X30: X | Z30: 0 | AF30: 0
A31: instructions and | Z31: 0
A32: check here. | Z32: 0 | AA32: Dependents on 6c not entered above | AF32: 0
Z33: 0
C35: d | E35: Total number of exemptions claimed . . . . . . . . . . . . . . . . . . . . . . . . . . . | Z35: 0 | AA35: Add numbers on lines above | AF35: =SUM(AF24,AF26) -> 3
A36: Income | C36: 7 | E36: Wages, salaries, tips, etc. Attach Form(s) W-2 | O36: . . . . . . . . . . . . . . . . . . | Z36: 7 | AA36: =Statements!E8 -> 15927
C37: 8 | D37: a | E37: Taxable interest. Attach Schedule B if required. . . . . . . . . . . . . . . . . . . . . . . . . . . . | Z37: 8a | AA37: ='Sch. B'!H31 -> 1000
A38: Attach Form(s) | D38: b | E38: Tax-exempt interest. Do not include on line 8a | R38: . . . . . . . . . | S38: 8b | T38: =SUM('1099-Ints'!E28:XFD28) -> 0
A39: W-2 here. Also | C39: 9 | D39: a | E39: Ordinary dividends. Attach Schedule B if required. . . . . . . . . . . . . . . . . . . . . . . . . . . . | Z39: 9a
A40: attach Forms | D40: b | E40: Qualified dividends | R40: . . . . . . . . . . . . . . . . . . . . . . | S40: 9b
A41: W-2G and | C41: 10 | E41: Taxable refunds, credits, or offsets of state and local income taxes . . . . . . . . . . . . . . . . . . . . . . . . . . . . . . | Z41: 10
A42: 1099-R if tax | C42: 11 | E42: Alimony received . . . . . . . . . . . . . . . . . . . . . . . . . . . . . . . . . . . . . . . . . | Z42: 11
A43: was withheld. | C43: 12 | E43: Business income or (loss). Attach Schedule C or C-EZ. . . . . . . . . . . . . . . . . . . . . . . . . . . . . . . . . . . . . . . . . . | H43: 123456789 | Z43: 12
C44: 13 | E44: Capital gain or (loss). Attach Schedule D if required. If not required, check here. | H44: 12345 | Z44: 13
A45: If you did not | C45: 14 | E45: Other gains or (losses). Attach Form 4797. . . . . . . . . . . . . . . . . . . . . . . . . . . . . . . . . . . . . . . . . . | Z45: 14
A46: get a W-2, | C46: 15 | D46: a | E46: IRA distributions | M46: 15a | S46: b | T46: Taxable amount . . . . . . . | Z46: 15b
A47: see page 20. | C47: 16 | D47: a | E47: Pensions and annuities | M47: 16a | S47: b | T47: Taxable amount . . . . . . . | Z47: 16b
C48: 17 | E48: Rental real estate, royalties, partnerships, S corporations, trusts, etc. Attach Schedule E. | Z48: 17
C49: 18 | E49: Farm income or (loss). Attach Schedule F. . . . . . . . . . . . . . . . . . . . . . . . . . . . . . . . . . . . . . . . . . | Z49: 18
C50: 19 | E50: Unemployment compensation . . . . . . . . . . . . . . . . . . . . . . . . . . . . . . . . . . . . . . . . . . | Z50: 19
C51: 20 | D51: a | E51: Social security benefits | M51: 20a | S51: b | T51: Taxable amount . . . . . . . | Z51: 20b
C52: 21 | E52: Other income. List type and amount. | Z52: 21
C53: 22 | E53: Combine the amounts in the far right column for lines 7 through 21. | S53: This is your total income | Z53: 22 | AA53: =SUM(AA36:AE52) -> 16927
C54: 23 | E54: Educator expenses . . . . . . . . . . . . . . . . . . . . . . . . . . . . . . . . . . . . . . . . . | S54: 23
A55: Adjusted | C55: 24 | E55: Certain business expenses of reservists, performing artists, and fee-basis government officials. Attach Form 2106 or 2106-EZ | S55: 24
A56: Gross | C56: 25 | E56: Health savings account deduction. Attach Form 8889 . . . . . . . . . . | S56: 25
A57: Income | C57: 26 | E57: Moving expenses. Attach Form 3903 . . . . . . . . . . . . . . . . . . . . . . . . . . . . . . . . . . . . . . . . . | S57: 26
C58: 27 | E58: Deductible part of self-employment tax. Attach Schedule SE . . . . . . . . . . . . . . . . . . . . . . . . . . . . . . . . . . . . . . . . . | S58: 27
C59: 28 | E59: Self-employed SEP, SIMPLE, and qualified plans . . . . . . . . . . . . . . . . . . . . . . . . . . . . . . . . . . . . . . . . . | S59: 28
C60: 29 | E60: Self-employed health insurance deduction | R60: . . . . . . . . . . . . | S60: 29
C61: 30 | E61: Penalty on early withdrawal of savings . . . . . . . . . . . . . . . . . . . . . . . . . . . . . . . . . . . . . . . . . | S61: 30
C62: 31 | D62: a | E62: Alimony paid | M62: b Recipient's SSN 4 | S62: 31a
C63: 32 | E63: IRA deduction | R63: . . . . . . . . . . . . . . . . . . | S63: 32
C64: 33 | E64: Student loan interest deduction | K64: . . . . . . . . . . . . . | S64: 33
C65: 34 | E65: Tuition and fees. Attach Form 8917 | R65: . . . . . . . . . . . . . . | S65: 34
C66: 35 | E66: Domestic production activities deduction. Attach Form 8903 | S66: 35
C67: 36 | E67: Add lines 23 through 35. | Q67: . . . . . . . . . . . . . . . . . . | Z67: 36 | AA67: =SUM(U54:X66) -> 0
C68: 37 | E68: Subtract line 36 from line 22. | N68: This is your adjusted gross income. | X68: . . . . . | Z68: 37 | AA68: =AA53-AA67 -> 16927
A69: For Disclosure, Privacy Act, and Paperwork Reduction Act Notice, see separate instructions. | W69: Cat. No. 11320B | AD69: Form 1040 | AF69: -2014

Sheet 1040 Page 2
A1: Form 1040 (2014) | AF1: Page 2
A2: Tax and | C2: 38 | E2: Amount from line 37 (adjusted gross income) | R2: 0 | S2: 0 | U2: 0 | X2: 0 | Z2: 38 | AA2: ='1040 Page 1'!AA68:AE68 -> 16927
A3: Credits | C3: 39 | D3: a | E3: Check | H3: You were born before | M3: ="January 2, 1950" -> January 2, 1950 | S3: Blind. Total boxes | X3: =COUNTIF(R3:R4,"X") -> 0 | AA3: You MUST indicate
A4: Standard | E4: if: | H4: Spouse was born before | N4: ="January 2, 1950" -> January 2, 1950 | S4: Blind. checked | W4: 39a | AA4: your filing status
D5: b | E5: If your spouse itemizes on a separate return or you were a dual-status alien, check here | AA5: in lines 1-5.
A6: • | B6: People who check any box on line 39a or 39b or who can be claimed as a dependent, see instructions. | C6: =C3+1 -> 40 | E6: Itemized deductions (from Schedule A) or your standard deduction (see left margin) | Y6: . . . . . | Z6: 40 | AA6: =IF('1040 Page 1'!D16="X",Deductions_Exemptions!C4,IF('1040 Page 1'!D18="X",Deductions_Exemptions!C6,IF('1040 Page 1'!D20="X",Deductions_Exemptions!C7,IF('1040 Page 1'!T16="X",Deductions_Exemptions!C5,0)))) -> 12400
C7: 41 | E7: Subtract line 40 from line 38 | Y7: . . . . . . . . . . . . . . . . . . . . . . . . . . . . . | Z7: 41 | AA7: =AA2-AA6 -> 4527
C8: 42 | E8: Exemptions. | G8: If line 38 is $150,000 or less, multiply $3,950 by number on line 6d. Otherwise, see instructions. | Z8: 42 | AA8: ='1040 Page 1'!AF35*Deductions_Exemptions!C10 -> 11850
C9: 43 | E9: Taxable income. | H9: Subtract line 42 from line 41. If line 42 is more than line 41, enter -0- | Y9: . . . . . . | Z9: 43 | AA9: =IF(AA8>AA7,0,AA7-AA8) -> 0
C10: 44 | E10: Tax (see instructions). Check if any tax is from: a | N10: Form(s) 8814 b | S10: Form 4972 c | Z10: 44 | AA10: 0
C11: 45 | E11: Alternative minimum tax (see instructions). Attach Form 6251 | Y11: . . . . . . . . . . . . . . . . | Z11: 45
A12: • | B12: All others: | C12: 46 | E12: Add lines 44 and 45 | Y12: . . . . . . . . . . . . . . . . . . . . . . . . . . . . . . . . . | Z12: 46 | AA12: =AA10 -> 0
B13: Single or Married filing separately, | C13: 47 | E13: Foreign tax credit. Attach Form 1116 if required | R13: . . . . . . . . | S13: 47
C14: 48 | E14: Credit for child and dependent care expenses. Attach Form 2441 . . . | R14: . | S14: 48
B15: 6100 | C15: 49 | E15: Education credits from Form 8863, line 19 | R15: . . . . . . . . . . | S15: 49 | T15: ='8863, pg 1'!J47 -> 0
B16: Married filing jointly or qualifying widow(er) | C16: 50 | E16: Retirement savings contributions credit. Attach Form 8880. | R16: . . . | S16: 50
C17: 51 | E17: Child tax credit. Attach Schedule 8812, if required | R17: . . . . . . . . . . . . | S17: 51 | T17: =COUNTIF('1040 Page 1'!X30:X33,"X")*2000 -> 2000
B18: 12200 | C18: 52 | E18: Residential energy credits. Attach Form 5695 | R18: . . . . . . . . . . | S18: 52
B19: Head of household | C19: 53 | E19: Other credits from Form:a | K19: 3800 b | N19: 8801 c | S19: 53
C20: 54 | E20: Add lines 47 through 53. | M20: These are your total credits . . . . . . . . . . . . . . . . . . . . . | Z20: 54 | AA20: =SUM(U13:X19) -> 0
B21: 8950 | C21: 55 | E21: Subtract line 54 from line 46. If line 54 is more than line 46, enter -0 - | X21: . . . . . . . . . . . . | Z21: 55 | AA21: =IF(AA20>AA12,0,AA12-AA20) -> 0
C22: 56 | E22: Self-employment tax. Attach Schedule SE . . . . . . . . . . . . . . . . . . . . . . . . . . . . . . . | Z22: 56
B23: Other | C23: 57 | E23: Unreported social security and Medicare tax from Form: | Q23: a | S23: 4137 | T23: b | V23: 8919 | Z23: 57
B24: Taxes | C24: 58 | E24: Additional tax on IRAs, other qualified retirement plans, etc. Attach Form 5329 if required . . . . . . . . . . . . . . . . . . . | Z24: 58
C25: 59 | D25: a | E25: Household employment taxes from Schedule H | Z25: 59a
D26: b | E26: First-time homebuyer credit repayment. Attach Form 5405 if required | Z26: b
C27: 60 | E27: Taxes from: a | H27: Form 8959 b | L27: Form 8960 c | N27: Instructions; enter code(s) | Z27: 60
C28: 61 | E28: Add lines 55 through 60. | J28: This is your total tax | Y28: . . . . . . . . . . . . . . . . . . . . | Z28: 61 | AA28: =IF(AA20>AA12,0,AA12-AA20) -> 0
B29: Payments | C29: 62 | E29: Federal income tax withheld from Forms W-2 and 1099 | R29: . . . . . . | S29: 62 | T29: 1140
C30: 63 | E30: 2013 estimated tax payments & amount applied from 2012 return | S30: 63
B31: If you have a | C31: 64 | E31: Earned income credit (EIC) | S31: 64a
B32: qualifying | E32: Nontaxable combat pay election | L32: . . . . | M32: 64b
B33: child, attach | C33: 65 | E33: Additional child tax credit. Attach form 8812. | S33: 65
B34: Schedule EIC. | C34: 66 | E34: American opportunity credit from Form 8863, line 8 | R34: . . . . . . . | S34: 66 | T34: ='8863, pg 1'!J25 -> 1836.3
C35: 67 | E35: Reserved | R35: . . . . . . . . . . . . . . . . . . . . . . . . | S35: 67
C36: 68 | E36: Amount paid with request for extension to file | R36: . . . . . . . . . . | S36: 68
C37: 69 | E37: Excess social security and tier 1 RRTA tax withheld | R37: . . . . . . . | S37: 69
C38: 70 | E38: Credit for federal tax on fuels. Attach Form 4136 | R38: . . . . . . . . | S38: 70
C39: 71 | E39: Credits from Form: a | I39: 2439 b | L39: Resvd c | N39: 8885 d | S39: 71
C40: 72 | E40: Add lines 62, 63, 64a, and 65 through 71. | N40: These are your | R40: total payments | X40: . . . . . . . | Z40: 72 | AA40: =SUM(T29:X39) -> 2976.3
B41: Refund | C41: 73 | E41: If line 72 is more than line 61, subtract line 61 from line 72. | R41: This is the amount you overpaid | Z41: 73 | AA41: =IF(AA40>AA28,ROUND(AA40-AA28,0),0) -> 2976
B42: Direct deposit? | C42: 74 | D42: a | E42: Amount of line 73 you want | K42: refunded to you. | V42: If Form 8888 is attached, check here | Z42: 74a | AA42: =AA41 -> 2976
B43: See | D43: b | E43: Routing number | H43: 123456789 | R43: 4c Type: | S43: X | T43: Checking | X43: Savings
B44: instructions. | D44: d | E44: Account number | H44: 654321
C45: 75 | E45: Amount of line 73 you want | R45: applied to your 2015 estimated tax | S45: 75
B46: Amount | C46: 76 | E46: Amount you owe. | X46: Subtract line 72 from line 61. For details on how to pay, see instructions. | Z46: 76 | AA46: =IF(AA40<AA28,ROUND(AA28-AA40,0),0) -> 0
B47: You Owe | C47: 77 | E47: Estimated tax penalty (see instructions) | R47: . . . . . . . . . . | S47: 77
B48: Third Party | C48: Do you want to allow another person to discuss this return with the IRS (see instructions)? | X48: Yes. Complete below. | AD48: X | AE48: No
B49: Designee | C49: Designee's name | M49: Phone no. | Y49: Personal Identification no.(PIN)
B50: Sign | C50: Under penalties of perjury, I declare that I have examined this return and accompanying schedules and statements, and to the best of my knowledge and belief,
B51: Here | C51: they are true, correct, and complete. Declaration of preparer (other than taxpayer) is based on all information of which preparer has any knowledge.
B52: Joint return? | C52: Your signature | N52: Date | R52: Your occupation | Y52: Daytime phone number
B53: See instructions. | N53: =TODAY() -> 2014-12-11 | R53: JANITOR | Y53: 8011234567
B54: Keep a copy | C54: Spouse’s signature. If a joint return, both must sign. | N54: Date | R54: Spouse's occupation | Y54: If the IRS sent you an Identity Protection PIN,
B55: for your records. | N55: =TODAY() -> 2014-12-11 | R55: TEACHING ASSISTANT | Y55: enter it here.
B56: Paid | C56: Print/Type preparer’s name | J56: Preparer’s signature | U56: Date | Y56: Check | AB56: if | AC56: PTIN
B57: Preparer's | Y57: self-employed
B58: Use Only | C58: Firm’s name | W58: Firm's EIN
C59: Firm’s address | W59: Phone no.
AD60: Form 1040 | AF60: -2014

Sheet Sch. B
A2: SCHEDULE B | H2: OMB No. 1545-0074
A3: (Form 1040A or 1040) | D3: Interest and Ordinary Dividends | H3: =2014 -> 2014
A4: Department of the Treasury | D4: 4 Attach to Form 1040A or 1040.
A5: Internal Revenue Service (99) | C5: 4 Information about Schedule B (Form 1040A or 1040) and its instructions is at www.irs.gov/scheduleb. | H5: Attachment
H6: Sequence No. 08
A7: Name(s) shown on return | G7: Your social security number
A8: =IFERROR('1040 Page 1'!A5 & " " & '1040 Page 1'!I5,"") -> JOHN A. DOE | G8: =IFERROR('1040 Page 1'!X5,"XXX-XX-XXXX") -> 111111111
A9: Part I | B9: 1 | C9: List name of payer. If any interest is from a seller-financed mortgage and the | H9: Amount | U9: `
A10: Interest | C10: buyer used the property as a personal residence, see instructions on back and list
C11: this interest first. Also, show that buyer’s social security number and address
A12: (See instructions | C12: =IF(VLOOKUP("Payer's name",'1099-Ints'!A1:AD25,2,FALSE)="","",VLOOKUP("Payer's name",'1099-Ints'!A1:AD25,2,FALSE)) -> Wells Fargo | H12: =IFERROR(IF(VLOOKUP("1 Interest income",'1099-Ints'!A1:AD25,2,FALSE)="","",VLOOKUP("1 Interest income",'1099-Ints'!A1:AD25,2,FALSE))*1,"") -> 1000
A13: on back and the | C13: =IF(VLOOKUP("Payer's name",'1099-Ints'!A1:AD25,3,FALSE)="","",VLOOKUP("Payer's name",'1099-Ints'!A1:AD25,3,FALSE)) ->  | H13: =IFERROR(IF(VLOOKUP("1 Interest income",'1099-Ints'!A1:AD25,3,FALSE)="","",VLOOKUP("1 Interest income",'1099-Ints'!A1:AD25,3,FALSE))*1,"") -> 
A14: instructions for | C14: =IF(VLOOKUP("Payer's name",'1099-Ints'!A1:AD25,4,FALSE)="","",VLOOKUP("Payer's name",'1099-Ints'!A1:AD25,4,FALSE)) ->  | H14: =IFERROR(IF(VLOOKUP("1 Interest income",'1099-Ints'!A1:AD25,4,FALSE)="","",VLOOKUP("1 Interest income",'1099-Ints'!A1:AD25,4,FALSE))*1,"") -> 
A15: Form 1040A, or | C15: =IF(VLOOKUP("Payer's name",'1099-Ints'!A1:AD25,5,FALSE)="","",VLOOKUP("Payer's name",'1099-Ints'!A1:AD25,5,FALSE)) ->  | H15: =IFERROR(IF(VLOOKUP("1 Interest income",'1099-Ints'!A1:AD25,5,FALSE)="","",VLOOKUP("1 Interest income",'1099-Ints'!A1:AD25,5,FALSE))*1,"") -> 
A16: Form 1040, | C16: =IF(VLOOKUP("Payer's name",'1099-Ints'!A1:AD25,6,FALSE)="","",VLOOKUP("Payer's name",'1099-Ints'!A1:AD25,6,FALSE)) ->  | H16: =IFERROR(IF(VLOOKUP("1 Interest income",'1099-Ints'!A1:AD25,6,FALSE)="","",VLOOKUP("1 Interest income",'1099-Ints'!A1:AD25,6,FALSE))*1,"") -> 
A17: line 8a.) | C17: =IF(VLOOKUP("Payer's name",'1099-Ints'!A1:AD25,7,FALSE)="","",VLOOKUP("Payer's name",'1099-Ints'!A1:AD25,7,FALSE)) ->  | H17: =IFERROR(IF(VLOOKUP("1 Interest income",'1099-Ints'!A1:AD25,7,FALSE)="","",VLOOKUP("1 Interest income",'1099-Ints'!A1:AD25,7,FALSE))*1,"") -> 
C18: =IF(VLOOKUP("Payer's name",'1099-Ints'!A1:AD25,8,FALSE)="","",VLOOKUP("Payer's name",'1099-Ints'!A1:AD25,8,FALSE)) ->  | H18: =IFERROR(IF(VLOOKUP("1 Interest income",'1099-Ints'!A1:AD25,8,FALSE)="","",VLOOKUP("1 Interest income",'1099-Ints'!A1:AD25,8,FALSE))*1,"") -> 
A19: Note: If you | C19: =IF(VLOOKUP("Payer's name",'1099-Ints'!A1:AD25,9,FALSE)="","",VLOOKUP("Payer's name",'1099-Ints'!A1:AD25,9,FALSE)) ->  | H19: =IFERROR(IF(VLOOKUP("1 Interest income",'1099-Ints'!A1:AD25,9,FALSE)="","",VLOOKUP("1 Interest income",'1099-Ints'!A1:AD25,9,FALSE))*1,"") -> 
A20: received a Form 1099-INT, Form 1099-OID, or substitute statement from a brokerage firm, list the firm’s name as the payer and enter the total interest shown on that form. | C20: =IF(VLOOKUP("Payer's name",'1099-Ints'!A1:AD25,10,FALSE)="","",VLOOKUP("Payer's name",'1099-Ints'!A1:AD25,10,FALSE)) ->  | H20: =IFERROR(IF(VLOOKUP("1 Interest income",'1099-Ints'!A1:AD25,10,FALSE)="","",VLOOKUP("1 Interest income",'1099-Ints'!A1:AD25,10,FALSE))*1,"") -> 
C21: =IF(VLOOKUP("Payer's name",'1099-Ints'!A1:AD25,11,FALSE)="","",VLOOKUP("Payer's name",'1099-Ints'!A1:AD25,11,FALSE)) ->  | H21: =IFERROR(IF(VLOOKUP("1 Interest income",'1099-Ints'!A1:AD25,11,FALSE)="","",VLOOKUP("1 Interest income",'1099-Ints'!A1:AD25,11,FALSE))*1,"") -> 
C22: =IF(VLOOKUP("Payer's name",'1099-Ints'!A1:AD25,12,FALSE)="","",VLOOKUP("Payer's name",'1099-Ints'!A1:AD25,12,FALSE)) ->  | H22: =IFERROR(IF(VLOOKUP("1 Interest income",'1099-Ints'!A1:AD25,12,FALSE)="","",VLOOKUP("1 Interest income",'1099-Ints'!A1:AD25,12,FALSE))*1,"") -> 
C23: =IF(VLOOKUP("Payer's name",'1099-Ints'!A1:AD25,13,FALSE)="","",VLOOKUP("Payer's name",'1099-Ints'!A1:AD25,13,FALSE)) ->  | H23: =IFERROR(IF(VLOOKUP("1 Interest income",'1099-Ints'!A1:AD25,13,FALSE)="","",VLOOKUP("1 Interest income",'1099-Ints'!A1:AD25,13,FALSE))*1,"") -> 
C24: =IF(VLOOKUP("Payer's name",'1099-Ints'!A1:AD25,14,FALSE)="","",VLOOKUP("Payer's name",'1099-Ints'!A1:AD25,14,FALSE)) ->  | H24: =IFERROR(IF(VLOOKUP("1 Interest income",'1099-Ints'!A1:AD25,14,FALSE)="","",VLOOKUP("1 Interest income",'1099-Ints'!A1:AD25,14,FALSE))*1,"") -> 
C25: =IF(VLOOKUP("Payer's name",'1099-Ints'!A1:AD25,15,FALSE)="","",VLOOKUP("Payer's name",'1099-Ints'!A1:AD25,15,FALSE)) ->  | H25: =IFERROR(IF(VLOOKUP("1 Interest income",'1099-Ints'!A1:AD25,15,FALSE)="","",VLOOKUP("1 Interest income",'1099-Ints'!A1:AD25,15,FALSE))*1,"") -> 
C26: =IF(VLOOKUP("Payer's name",'1099-Ints'!A1:AD25,16,FALSE)="","",VLOOKUP("Payer's name",'1099-Ints'!A1:AD25,16,FALSE)) ->  | H26: =IFERROR(IF(VLOOKUP("1 Interest income",'1099-Ints'!A1:AD25,16,FALSE)="","",VLOOKUP("1 Interest income",'1099-Ints'!A1:AD25,16,FALSE))*1,"") -> 
B27: 2 | C27: Add the amounts on line 1 . . . . . . . . . . . . . . . . . . . . . . . . . . . | H27: =SUM(H12:N26) -> 1000
B28: 3 | C28: Excludable interest on series EE and I U.S. savings bonds issued after 1989.
C29: Attach Form 8815 | F29: . . . . . . . . . . . . . . . . . . . . . . . . . . . . . . . . . . . . . .
B30: 4 | C30: Subtract line 3 from line 2. Enter the result here and on Form 1040A, or Form
C31: 1040, line 8a | F31: . . . . . . . . . . . . . . . . . . . . . . . . . . . . . . . . . . . . . . | H31: =H27-H29 -> 1000
B32: Note: | C32: ="If line 4 is over "&TEXT(G32,"$0,000")&", you must complete Part III." -> If line 4 is over $1,500, you must complete Part III. | F32: =IF(AND($H$31>$G$32,OR(AND(J60="",M60=""),AND(J65="",M65=""),AND(J70="",M70=""))),1,0) -> 0 | G32: 1500 | H32: Amount
A33: Part II | B33: 5 | C33: List name of payer
A34: Ordinary
A35: Dividends
A37: (See instructions
A38: on back and the
A39: instructions for
A40: Form 1040A, or
A41: Form 1040, line 9a.)
A43: Note: If you
A44: received a Form
A45: 1099-DIV or
A46: substitute
A47: statement from
A48: a brokerage firm,
A49: list the firm's
A50: name as the
A51: payer and enter
A52: the ordinary
A53: dividends shown | B53: 6 | C53: Add the amounts on line 5. Enter the total here and on Form 1040A, or Form
A54: on that form. | C54: 1040, line 9a | F54: . . . . . . . . . . . . . . . . . . . . . . . . . . . . . . . . . . . . . .
B55: Note: | C55: ="If line 6 is over "&TEXT(G32,"$0,000")&", you must complete Part III." -> If line 6 is over $1,500, you must complete Part III. | F55: =IF(AND($H$54>$G$32,OR(AND(J60="",M60=""),AND(J65="",M65=""),AND(J70="",M70=""))),1,0) -> 0
B56: ="You must complete this part if you (a) had over "&TEXT(G32,"$0,000")&" of interest or dividends; (b) had a foreign" -> You must complete this part if you (a) had over $1,500 of interest or dividends; (b) had a foreign | I56: Yes | L56: No
A57: Part III | B57: account; or (c) received a distribution from, or were a grantor of, or a transferor to, a foreign trust.
A58: Foreign | B58: 7a | C58: At any time during 2013, did you have interest in or a signature or other authority over a financial
A59: Accounts | C59: account (such as a bank account, securities account, or brokerage account) located in a foreign
A60: and Trusts | C60: country? See instructions | H60: . . . . . . . . . . . . . . . . . . . . . . . . . . . . . . . . . . . . . .
A62: (See | C62: If “Yes,” are you required to file FinCEN Form 114, Report of Foreign Bank and Financial
A63: instructions on | C63: Accounts (FBAR), formerly TD F 90-22.1, to report that financial interest or signature authority?
A64: back.) | C64: See FinCEN Form 114 and its instructions for filing requirements and exceptions to those
C65: requirements | H65: . . . . . . . . . . . . . . . . . . . . . . . . . . . . . . . . . . . . . .
A66: instructions on
B67: b | C67: If you are required to file FinCEN Form 114, enter the name of the foreign country where the
C68: financial account is located
B69: 8 | C69: ="During "&2014&", did you receive a distribution from, or were you the grantor of, or transferor to, a" -> During 2014, did you receive a distribution from, or were you the grantor of, or transferor to, a
C70: foreign trust? If "Yes," you may have to file Form 3520. See instructions on back | H70: . . . .
A72: For Paperwork Reduction Act Notice, see your tax return instructions. | E72: Cat. No. 17146N | N72: ="Schedule B (Form 1040 or Form 1040A) "&2014 -> Schedule B (Form 1040 or Form 1040A) 2014

Sheet 8863, pg 1
A1: Form 8863 Department of the Treasury Internal Revenue Service (99) | C1: Education Credits | K1: OMB No. 1545-0074
C2: (American Opportunity and Lifetime Learning Credits)
C3: ▶ Information about Form 8863 and its separate instructions is at www.irs.gov/form8863. ▶ Attach to Form 1040 or Form 1040A. | K3: 2014 Attachment Sequence No. 50
A4: Name(s) shown on return | H4: Your social security number
A5: =IFERROR('1040 Page 1'!A5 & " " & '1040 Page 1'!I5,"") -> JOHN A. DOE | H5: =IFERROR('1040 Page 1'!X5,"XXX-XX-XXXX") -> 111111111
C6: Complete a separate Part III on page 2 for each student for whom you are claiming either credit before you complete Parts I and II.
A7: Part I | C7: Refundable American Opportunity Credit
A8: 1 | B8: After completing Part III for each student, enter the total of all amounts from all Parts III, line 30 . | I8: 1 | J8: ='8863, pg 2 (1)'!X46+'8863, pg 2 (2)'!X46 -> 4590.75
A9: 2 | B9: Enter: $180,000 if married filing jointly; $90,000 if single, head of | F9: =IF('1040 Page 1'!D18="X",180000,90000) -> 180000
B10: household, or qualifying widow(er) . . . . . . . . . . . . . | E10: 2
A11: 3 | B11: Enter the amount from Form 1040, line 38, or Form 1040A, line 22. If you | E11: 3 | F11: ='1040 Page 2'!AA2 -> 16927
B12: are filing Form 2555, 2555-EZ, or 4563, or you are excluding income from
B13: Puerto Rico, see Pub. 970 for the amount to enter . . . . . . . .
A14: 4 | B14: Subtract line 3 from line 2. If zero or less, stop; you cannot take any | E14: 4 | F14: =F9-F11 -> 163073
B15: education credit . . . . . . . . . . . . . . . . . . .
A16: 5 | B16: Enter: $20,000 if married filing jointly; $10,000 if single, head of household, | E16: 5 | F16: =IF('1040 Page 1'!D18="X",20000,10000) -> 20000
B17: or qualifying widow(er) . . . . . . . . . . . . . . . . .
A18: 6 | B18: If line 4 is:
B19: • Equal to or more than line 5, enter 1.000 on line 6 . . . . . . . . . . . .
B20: • Less than line 5, divide line 4 by line 5. Enter the result as a decimal (rounded to . . . . | I20: 6 | J20: =IF(F14>=F16,1,ROUND(F14/F16,3)) -> 1
B21: at least three places) . . . . . . . . . . . . . . . . . . . . . . | J21: =J8*J20 -> 4590.75
A22: 7 | B22: Multiply line 1 by line 6. Caution: If you were under age 24 at the end of the year and meet
B23: the conditions described in the instructions, you cannot take the refundable American opportunity
B24: credit; skip line 8, enter the amount from line 7 on line 9, and check this box . . . . ▶ | I24: 7
A25: 8 | B25: Refundable American opportunity credit. Multiply line 7 by 40% (.40). Enter the amount here | I25: 8 | J25: =J21*0.4 -> 1836.3
B26: and on Form 1040, line 66, or Form 1040A, line 40. Then go to line 9 below. . . . .
A27: Part II | C27: Nonrefundable Education Credits
A28: 9 Subtract line 8 from line 7. Enter here and on line 2 of the Credit Limit Worksheet (see instructions) 10 After completing Part III for each student, enter the total of all amounts from all Parts III, line 31. If zero, skip lines 11 through 17, enter -0- on line 18, and go to line 19 . . . . . . . . . . 11 Enter the smaller of line 10 or $10,000 . . . . . . . . . . . . . . . . . . . . 12 Multiply line 11 by 20% (.20) . . . . . . . . . . . . . . . . . . . . . . . | B28: Subtract line 8 from line 7. Enter here and on line 2 of the Credit Limit Worksheet (see instructions) | I28: 9 | J28: =J21-J25 -> 2754.45
A29: 10 | B29: After completing Part III for each student, enter the total of all amounts from all Parts III, line 31. If | I29: 10 | J29: ='8863, pg 2 (1)'!X49+'8863, pg 2 (1)'!X49 -> 0
B30: zero, skip lines 11 through 17, enter -0- on line 18, and go to line 19 . . . . . . . . . .
A31: 11 | B31: Enter the smaller of line 10 or $10,000 . . . . . . . . . . . . . . . . . . . . | I31: 11 | J31: =IF(J29<10000,J29,10000) -> 0
A32: 12 | B32: Multiply line 11 by 20% (.20) . . . . . . . . . . . . . . . . . . . . . . . | I32: 12 | J32: =J31*0.2 -> 0
A33: 13 | B33: Enter: $127,000 if married filing jointly; $63,000 if single, head of | E33: 13 | F33: =IF('1040 Page 1'!D18="X",127000,63000) -> 127000
B34: household, or qualifying widow(er) . . . . . . . . . . . . .
A35: 14 | B35: Enter the amount from Form 1040, line 38, or Form 1040A, line 22. If you | E35: 14 | F35: ='1040 Page 2'!AA2 -> 16927
B36: are filing Form 2555, 2555-EZ, or 4563, or you are excluding income from
B37: Puerto Rico, see Pub. 970 for the amount to enter . . . . . . . .
A38: 15 | B38: Subtract line 14 from line 13. If zero or less, skip lines 16 and 17, enter -0- | E38: 15 | F38: =IF(F33-F35<0,0,F33-F35) -> 110073
B39: on line 18, and go to line 19 . . . . . . . . . . . . . . .
A40: 16 | B40: Enter: $20,000 if married filing jointly; $10,000 if single, head of household, | E40: 16 | F40: =IF('1040 Page 1'!D25="X",20000,10000) -> 10000
B41: or qualifying widow(er) . . . . . . . . . . . . . . . . . . . . . .
A42: 17 | B42: If line 15 is:
B43: • Equal to or more than line 16, enter 1.000 on line 17 and go to line 18
B44: • Less than line 16, divide line 15 by line 16. Enter the result as a decimal (rounded to at least three
B45: places) . . . . . . . . . . . . . . . . . . . . . . . . . . . . . . | I45: 17 | J45: =IF(F38>=F40,1000,ROUND(F38/F40,3)) -> 1000
A46: 18 | B46: Multiply line 12 by line 17. Enter here and on line 1 of the Credit Limit Worksheet (see instructions) ▶ | I46: 18 | J46: =J32*J45 -> 0
A47: 19 | B47: Nonrefundable education credits. Enter the amount from line 7 of the Credit Limit Worksheet (see | I47: 19 | J47: =IF(J46+J28<'1040 Page 2'!AA12, J46+J28, '1040 Page 2'!AA12) -> 0
B48: instructions) here and on Form 1040, line 49, or Form 1040A, line 31 . . . . . . . . . .
A49: For Paperwork Reduction Act Notice, see your tax return instructions. Cat. No. 25379M Form 8863 (2014)

Sheet 8863, pg 2 (1)
A1: Form 8863 (2014) | X1: Page | AA1: 2
A2: Name(s) shown on return | T2: Your social security number
A3: =IFERROR('1040 Page 1'!A5 & " " & '1040 Page 1'!I5,"") -> JOHN A. DOE | T3: =IFERROR('1040 Page 1'!X5,"XXX-XX-XXXX") -> 111111111
C4: Complete Part III for each student for whom you are claiming either the American opportunity credit or lifetime learning credit. Use additional copies of Page 2 as needed for each student.
A5: Part III | C5: Student and Educational Institution Information
C6: See instructions.
A7: 20 | B7: Student name (as shown on page 1 of your tax return) | M7: 21 | N7: Student social security number (as shown on page 1 of your tax return)
B8: =IF(VLOOKUP("Student's name",'1098-Ts'!A1:AM372,3, FALSE)="", "",VLOOKUP("Student's name",'1098-Ts'!A1:AM372,3, FALSE)) -> JOHN A DOE | N8: =IF(VLOOKUP("Student's SSN",'1098-Ts'!A1:AM372,3, FALSE)="","",VLOOKUP("Student's SSN",'1098-Ts'!A1:AM372,3, FALSE)) -> 111111111
A9: 22 | B9: Educational institution information (see instructions)
B10: a. Name of first educational institution (if any) | N10: b. Name of second educational institution (if any)
B11: =IF(VLOOKUP("Filer's name",'1098-Ts'!A1:AM372,3, FALSE)="", "",VLOOKUP("Filer's name",'1098-Ts'!A1:AM372,3, FALSE)) -> BRIGHAM YOUNG UNIVERSITY
B12: (1) Address. Number and street (or P.O. box). City, town or post office, state, and ZIP code. If a foreign address, see instructions. | N12: (1) Address. Number and street (or P.O. box). City, town or post office, state, and ZIP code. If a foreign address, see instructions.
B13: =IF(VLOOKUP("1-Street Address",'1098-Ts'!A1:AM372,3,FALSE)="","",VLOOKUP("1-Street Address",'1098-Ts'!A1:AM372,3,FALSE)&", "&VLOOKUP("1-City or town",'1098-Ts'!A1:AM372,3,FALSE)&", "&VLOOKUP("1-State/Province",'1098-Ts'!A1:AM372,3,FALSE)&", "&VLOOKUP("1-ZIP/Postal code",'1098-Ts'!A1:AM372,3,FALSE)) -> 123 UNIVERSITY PLACE, PROVO, UT, 84602
B14: (2) Did the student receive Form 1098-T | N14: (2) Did the student receive Form 1098-T
C15: from this institution for 2013? | E15: =IF(B8="","","X") -> X | G15: Yes | K15: No | O15: from this institution for 2013? | V15: Yes | Z15: No
B16: (3) 2 filled in and Box 7 checked? | C16: Did the student receive Form 1098-T | N16: (3) 2 filled in and Box 7 checked? | O16: Did the student receive Form 1098-T
C17: from this institution for 2013 with Box | E17: =IF(B8="","","X") -> X | G17: Yes | K17: No | O17: from this institution for 2013 with Box | V17: Yes | Z17: No
C18: 2 filled in and Box 7 checked? | O18: 2 filled in and Box 7 checked?
A19: If you checked “No” in both (2) and (3), skip (4). | M19: If you checked “No” in both (2) and (3), skip (4).
B20: -4 | C20: If you checked “Yes” in (2) or (3), enter the institution's | N20: -4 | O20: If you checked “Yes” in (2) or (3), enter the institution's
C21: federal identification number (from Form 1098-T) | O21: federal identification number (from Form 1098-T)
C22: =IF(VLOOKUP("Filer's federal ID no.",'1098-Ts'!A1:AM372,3, FALSE)="", "",VLOOKUP("Filer's federal ID no.",'1098-Ts'!A1:AM372,3, FALSE)) -> 870217280
A24: 23 | B24: Has the Hope Scholarship Credit or American opportunity
B25: credit been claimed for this student for any 4 tax years | M25: =IF(VLOOKUP("Question 1",'1098-Ts'!A1:AM372,3, FALSE)="YES","X","") ->  | N25: Yes — Stop! | Q25: =IF(VLOOKUP("Question 1",'1098-Ts'!A1:AM372,3, FALSE)="No","X","") -> X | S25: No — Go to line 24.
B26: before 2014? | N26: Go to line 31 for this student.
A27: 24 | B27: Was the student enrolled at least half-time for at least one
B28: academic period that began in 2014 at an eligible
B29: educational institution in a program leading towards a | M29: =IF(VLOOKUP("Question 2",'1098-Ts'!A1:AM372,3, FALSE)="YES","X","") -> X | N29: Yes — Go to line 25. | Q29: =IF(VLOOKUP("Question 2",'1098-Ts'!A1:AM372,3, FALSE)="No","X","") ->  | S29: No — Stop! Go to line 31
B30: postsecondary degree, certificate, or other recognized | S30: for this student.
B31: postsecondary educational credential? (see instructions)
A32: 25 | B32: Did the student complete the first 4 years of post-secondary
B33: education before 2014? | M33: =IF(VLOOKUP("Question 3",'1098-Ts'!A1:AM372,3, FALSE)="YES","X","") ->  | N33: Yes — Stop! | Q33: =IF(VLOOKUP("Question 3",'1098-Ts'!A1:AM372,3, FALSE)="No","X","") -> X | S33: No — Go to line 26.
N34: Go to line 31 for this student.
A35: 26 | B35: Was the student convicted, before the end of 2014, of a | S35: No — See Tip below and
B36: felony for possession or distribution of a controlled | M36: =IF(VLOOKUP("Question 4",'1098-Ts'!A1:AM372,3, FALSE)="YES","X","") ->  | N36: Yes — Stop! | Q36: =IF(VLOOKUP("Question 4",'1098-Ts'!A1:AM372,3, FALSE)="No","X","") -> X | S36: complete either lines 27-30
B37: substance? | N37: Go to line 31 for this student. | S37: or line 31 for this student.
C38: When you figure your taxes, you may want to compare the American opportunity credit and lifetime learning credits, and
C39: choose the credit for each student that gives you the lower tax liability. You cannot take the American opportunity credit
C40: and the lifetime learning credit for the same student in the same year. If you complete lines 27 through 30 for this student,
C41: do not complete line 31.
A42: American Opportunity Credit
A43: 27 30 | B43: Adjusted qualified education expenses (see instructions). Do not enter more than $4,000 . . . . . . . . . . . . . | W43: 27 | X43: =IF(VLOOKUP("2 Amounts billed for qualified tuition and related expenses",'1098-Ts'!A1:AM372,3,FALSE)-VLOOKUP("5 Scholarships or grants",'1098-Ts'!A1:AM372,3,FALSE)+IF(VLOOKUP("Additional Education Expenses",'1098-Ts'!A1:AM372,3,FALSE)="",0,VLOOKUP("Additional Education Expenses",'1098-Ts'!A1:AM372,3,FALSE))<0,0,IF(Q36="X",IF(VLOOKUP("2 Amounts billed for qualified tuition and related expenses",'1098-Ts'!A1:AM372,3,FALSE)-VLOOKUP("5 Scholarships or grants",'1098-Ts'!A1:AM372,3,FALSE)+IF(VLOOKUP("Additional Education Expenses",'1098-Ts'!A1:AM372,3,FALSE)="",0,VLOOKUP("Additional Education Expenses",'1098-Ts'!A1:AM372,3,FALSE))>4000,4000,VLOOKUP("2 Amounts billed for qualified tuition and related expenses",'1098-Ts'!A1:AM372,3,FALSE)-VLOOKUP("5 Scholarships or grants",'1098-Ts'!A1:AM372,3,FALSE)+'1098-Ts'!F34),0)) -> 2363
A44: 28 | B44: Subtract $2,000 from line 27. If zero or less enter -0- . . . . . . . . . . . . . . . . . . . . . . . . . . . | W44: 28 | X44: =IF(X43-2000 <0, 0, X43-2000 ) -> 363
A45: 29 | B45: Multiply line 28 by 25% (.25) . . . . . . . . . . . . . . . . . . . . . . . . . . . . . . . . . . . . | W45: 29 | X45: =X44*0.25 -> 90.75
A46: 30 | B46: If line 28 is zero, enter the amount from line 27. Otherwise, add $2,000 to the amount on line 29 and enter the | W46: 30 | X46: =IF(X44=0,X43,X45+2000) -> 2090.75
B47: result. Skip line 31. Include the total of all amounts from all Parts III, line 30 on Part I, line 1 . . . . . . . . . . . . .
A48: Lifetime Learning Credit
A49: 31 | B49: Adjusted qualified education expenses (see instructions). Include the total of all amounts from all Parts | W49: 31 | X49: =IF(VLOOKUP("2 Amounts billed for qualified tuition and related expenses",'1098-Ts'!A1:AM372,3,FALSE)-VLOOKUP("5 Scholarships or grants",'1098-Ts'!A1:AM372,3,FALSE)+IF(VLOOKUP("Additional Education Expenses",'1098-Ts'!A1:AM372,3,FALSE)="",0,VLOOKUP("Additional Education Expenses",'1098-Ts'!A1:AM372,3,FALSE))<0,0,IF(M36="X",VLOOKUP("2 Amounts billed for qualified tuition and related expenses",'1098-Ts'!A1:AM372,3,FALSE)-VLOOKUP("5 Scholarships or grants",'1098-Ts'!A1:AM372,3,FALSE)+IF(VLOOKUP("Additional Education Expenses",'1098-Ts'!A1:AM372,3,FALSE)="",0,VLOOKUP("Additional Education Expenses",'1098-Ts'!A1:AM372,3,FALSE)),0)) -> 0
B50: III, line 31, on Part II, line 10 . . . . . . . . . . . . . . . . . . . . . . . . . . . . . . . . . . . .
A51: Form 8863 (2014)

Sheet 8863, pg 2 (2)
A1: Form 8863 (2014) | X1: Page | AA1: 2
A2: Name(s) shown on return | T2: Your social security number
A3: =IFERROR('1040 Page 1'!A5 & " " & '1040 Page 1'!I5,"") -> JOHN A. DOE | T3: =IFERROR('1040 Page 1'!X5,"XXX-XX-XXXX") -> 111111111
C4: Complete Part III for each student for whom you are claiming either the American opportunity credit or lifetime learning credit. Use additional copies of Page 2 as needed for each student.
A5: Part III | C5: Student and Educational Institution Information
C6: See instructions.
A7: 20 | B7: Student name (as shown on page 1 of your tax return) | M7: 21 | N7: Student social security number (as shown on page 1 of your tax return)
B8: =IF(VLOOKUP("Student's name",'1098-Ts'!A1:AM372,2, FALSE)="", "",VLOOKUP("Student's name",'1098-Ts'!A1:AM372,2, FALSE)) -> JANE B. DOE | N8: =IF(VLOOKUP("Student's SSN",'1098-Ts'!A1:AM372,2, FALSE)="","",VLOOKUP("Student's SSN",'1098-Ts'!A1:AM372,2, FALSE)) -> 222222222
A9: 22 | B9: Educational institution information (see instructions)
B10: a. Name of first educational institution (if any) | N10: b. Name of second educational institution (if any)
B11: =IF(VLOOKUP("Filer's name",'1098-Ts'!A1:AM372,2, FALSE)="", "",VLOOKUP("Filer's name",'1098-Ts'!A1:AM372,2, FALSE)) -> UTAH VALLEY UNIVERSITY
B12: (1) Address. Number and street (or P.O. box). City, town or post office, state, and ZIP code. If a foreign address, see instructions. | N12: (1) Address. Number and street (or P.O. box). City, town or post office, state, and ZIP code. If a foreign address, see instructions.
B13: =IF(VLOOKUP("1-Street Address",'1098-Ts'!A1:AM372,2,FALSE)="","",VLOOKUP("1-Street Address",'1098-Ts'!A1:AM372,2,FALSE)&", "&VLOOKUP("1-City or town",'1098-Ts'!A1:AM372,2,FALSE)&", "&VLOOKUP("1-State/Province",'1098-Ts'!A1:AM372,2,FALSE)&", "&VLOOKUP("1-ZIP/Postal code",'1098-Ts'!A1:AM372,2,FALSE)) -> 321 UNIVERSITY PKWY, OREM, UT, 84058
B14: (2) Did the student receive Form 1098-T | N14: (2) Did the student receive Form 1098-T
C15: from this institution for 2013? | E15: =IF(B8="","","X") -> X | G15: Yes | K15: No | O15: from this institution for 2013? | V15: Yes | Z15: No
B16: (3) 2 filled in and Box 7 checked? | C16: Did the student receive Form 1098-T | N16: (3) 2 filled in and Box 7 checked? | O16: Did the student receive Form 1098-T
C17: from this institution for 2013 with Box | E17: =IF(B8="","","X") -> X | G17: Yes | K17: No | O17: from this institution for 2013 with Box | V17: Yes | Z17: No
C18: 2 filled in and Box 7 checked? | O18: 2 filled in and Box 7 checked?
A19: If you checked “No” in both (2) and (3), skip (4). | M19: If you checked “No” in both (2) and (3), skip (4).
B20: -4 | C20: If you checked “Yes” in (2) or (3), enter the institution's | N20: -4 | O20: If you checked “Yes” in (2) or (3), enter the institution's
C21: federal identification number (from Form 1098-T) | O21: federal identification number (from Form 1098-T)
C22: =IF(VLOOKUP("Filer's federal ID no.",'1098-Ts'!A1:AM372,2, FALSE)="", "",VLOOKUP("Filer's federal ID no.",'1098-Ts'!A1:AM372,2, FALSE)) -> 870280648
A24: 23 | B24: Has the Hope Scholarship Credit or American opportunity
B25: credit been claimed for this student for any 4 tax years | M25: =IF(VLOOKUP("Question 1",'1098-Ts'!A1:AM372,2, FALSE)="YES","X","") ->  | N25: Yes — Stop! | Q25: =IF(VLOOKUP("Question 1",'1098-Ts'!A1:AM372,2, FALSE)="No","X","") -> X | S25: No — Go to line 24.
B26: before 2014? | N26: Go to line 31 for this student.
A27: 24 | B27: Was the student enrolled at least half-time for at least one
B28: academic period that began in 2014 at an eligible
B29: educational institution in a program leading towards a | M29: =IF(VLOOKUP("Question 2",'1098-Ts'!A1:AM372,2, FALSE)="YES","X","") -> X | N29: Yes — Go to line 25. | Q29: =IF(VLOOKUP("Question 2",'1098-Ts'!A1:AM372,2, FALSE)="No","X","") ->  | S29: No — Stop! Go to line 31
B30: postsecondary degree, certificate, or other recognized | S30: for this student.
B31: postsecondary educational credential? (see instructions)
A32: 25 | B32: Did the student complete the first 4 years of post-secondary
B33: education before 2014? | M33: =IF(VLOOKUP("Question 3",'1098-Ts'!A1:AM372,2, FALSE)="YES","X","") ->  | N33: Yes — Stop! | Q33: =IF(VLOOKUP("Question 3",'1098-Ts'!A1:AM372,2, FALSE)="No","X","") -> X | S33: No — Go to line 26.
N34: Go to line 31 for this student.
A35: 26 | B35: Was the student convicted, before the end of 2014, of a | S35: No — See Tip below and
B36: felony for possession or distribution of a controlled | M36: =IF(VLOOKUP("Question 4",'1098-Ts'!A1:AM372,2, FALSE)="YES","X","") ->  | N36: Yes — Stop! | Q36: =IF(VLOOKUP("Question 4",'1098-Ts'!A1:AM372,2, FALSE)="No","X","") -> X | S36: complete either lines 27-30
B37: substance? | N37: Go to line 31 for this student. | S37: or line 31 for this student.
C38: When you figure your taxes, you may want to compare the American opportunity credit and lifetime learning credits, and
C39: choose the credit for each student that gives you the lower tax liability. You cannot take the American opportunity credit
C40: and the lifetime learning credit for the same student in the same year. If you complete lines 27 through 30 for this student,
C41: do not complete line 31.
A42: American Opportunity Credit
A43: 27 30 | B43: Adjusted qualified education expenses (see instructions). Do not enter more than $4,000 . . . . . . . . . . . . . | W43: 27 | X43: =IF(VLOOKUP("2 Amounts billed for qualified tuition and related expenses",'1098-Ts'!A1:AM372,2,FALSE)-VLOOKUP("5 Scholarships or grants",'1098-Ts'!A1:AM372,2,FALSE)+IF(VLOOKUP("Additional Education Expenses",'1098-Ts'!A1:AM372,2,FALSE)="",0,VLOOKUP("Additional Education Expenses",'1098-Ts'!A1:AM372,2,FALSE))<0,0,IF(Q36="X",IF(VLOOKUP("2 Amounts billed for qualified tuition and related expenses",'1098-Ts'!A1:AM372,2,FALSE)-VLOOKUP("5 Scholarships or grants",'1098-Ts'!A1:AM372,2,FALSE)+IF(VLOOKUP("Additional Education Expenses",'1098-Ts'!A1:AM372,2,FALSE)="",0,VLOOKUP("Additional Education Expenses",'1098-Ts'!A1:AM372,2,FALSE))>4000,4000,VLOOKUP("2 Amounts billed for qualified tuition and related expenses",'1098-Ts'!A1:AM372,2,FALSE)-VLOOKUP("5 Scholarships or grants",'1098-Ts'!A1:AM372,2,FALSE)+'1098-Ts'!F34),0)) -> 4000
A44: 28 | B44: Subtract $2,000 from line 27. If zero or less enter -0- . . . . . . . . . . . . . . . . . . . . . . . . . . . | W44: 28 | X44: =IF(X43-2000 <0, 0, X43-2000 ) -> 2000
A45: 29 | B45: Multiply line 28 by 25% (.25) . . . . . . . . . . . . . . . . . . . . . . . . . . . . . . . . . . . . | W45: 29 | X45: =X44*0.25 -> 500
A46: 30 | B46: If line 28 is zero, enter the amount from line 27. Otherwise, add $2,000 to the amount on line 29 and enter the | W46: 30 | X46: =IF(X44=0,X43,X45+2000) -> 2500
B47: result. Skip line 31. Include the total of all amounts from all Parts III, line 30 on Part I, line 1 . . . . . . . . . . . . .
A48: Lifetime Learning Credit
A49: 31 | B49: Adjusted qualified education expenses (see instructions). Include the total of all amounts from all Parts | W49: 31 | X49: =IF(VLOOKUP("2 Amounts billed for qualified tuition and related expenses",'1098-Ts'!A1:AM372,2,FALSE)-VLOOKUP("5 Scholarships or grants",'1098-Ts'!A1:AM372,2,FALSE)+IF(VLOOKUP("Additional Education Expenses",'1098-Ts'!A1:AM372,2,FALSE)="",0,VLOOKUP("Additional Education Expenses",'1098-Ts'!A1:AM372,2,FALSE))<0,0,IF(M36="X",VLOOKUP("2 Amounts billed for qualified tuition and related expenses",'1098-Ts'!A1:AM372,2,FALSE)-VLOOKUP("5 Scholarships or grants",'1098-Ts'!A1:AM372,2,FALSE)+IF(VLOOKUP("Additional Education Expenses",'1098-Ts'!A1:AM372,2,FALSE)="",0,VLOOKUP("Additional Education Expenses",'1098-Ts'!A1:AM372,2,FALSE)),0)) -> 0
B50: III, line 31, on Part II, line 10 . . . . . . . . . . . . . . . . . . . . . . . . . . . . . . . . . . . .
A51: Form 8863 (2014)

Sheet Statements
A1: FORM 1040 | E1: WAGES RECEIVED AND TAXES WITHHELD | O1: STATEMENT 1
G3: FEDERAL | I3: STATE | K3: CITY
A4: T | E4: AMOUNT | G4: TAX | I4: TAX | K4: SDI | M4: FICA | O4: MEDICARE
A5: S | C5: EMPLOYER'S NAME | E5: PAID | G5: WITHHELD | I5: WITHHELD | K5: TAX W/H | M5: TAX | O5: TAX
A6: T | C6: BRIGHAM YOUNG UNIVERSITY | E6: 9247 | G6: 682 | I6: 0 | K6: 0 | M6: 243 | O6: 57
A7: S | C7: BRIGHAM YOUNG UNIVERSITY | E7: 6680 | G7: 458 | I7: 0 | K7: 0 | M7: 119 | O7: 41
A8: TOTALs | E8: 15927 | G8: 1140 | I8: 0 | K8: 0 | M8: 362 | O8: 98

Sheet W-2s (hidden)
A1: Statement Number | B1: 2 | C1: 1
A2: Employee's Social Security Number | B2: 222222222 | C2: 111111111
A3: Employer's federal ID no. | B3: 870217281 | C3: 870217280
A4: Employer's name | B4: BRIGHAM YOUNG UNIVERSITY | C4: BRIGHAM YOUNG UNIVERSITY
A5: Street address | B5: 123 UNIVERSITY PLACE | C5: 123 UNIVERSITY PLACE
A6: APT/Suite
A7: City | B7: PROVO | C7: PROVO
A8: State | B8: UT | C8: UT
A9: ZIP | B9: 84602 | C9: 84602
A10: Control Number
A11: Employee's name | B11: JANE B. DOE | C11: JOHN A. DOE
A12: Street address | B12: 123 STATE ST. | C12: 123 STATE ST.
A13: APT/Suite | B13: 14 | C13: 14
A14: City | B14: PROVO | C14: Provo
A15: State | B15: UT | C15: UT
A16: ZIP | B16: 84606 | C16: 84606
A17: 1 Wages, tips, other compensation | B17: 6680 | C17: 9247
A18: 2 Federal income tax withheld | B18: 458 | C18: 682
A19: 3 Social security wages | B19: 2832 | C19: 3915
A20: 4 Social security tax withheld | B20: 119 | C20: 243
A21: 5 Medicare wages and tips | B21: 2832 | C21: 3915
A22: 6 Medicare tax withheld | B22: 41 | C22: 57
A23: 7 Social security tips
A24: 8 Allocated tips
A25: 10 Dependent care benefits
A26: 12a code
A27: 12a value
A28: 12b code
A29: 12b value
A30: 12c code
A31: 12c value
A32: 12d code
A33: 12d value
A34: 13 Statury Employee | B34: NO | C34: NO
A35: 13 Retirement Plan | B35: NO | C35: NO
A36: 13 Third-party sick pay | B36: NO | C36: NO
A37: 14 Other
A38: 15-1 State
A39: 15-1 Employer's state ID no.
A40: 16-1 State Wages, tips, etc.
A41: 17-1 State income tax
A42: 18-1 Local wages, tips, etc.
A43: 19-1 Local income tax
A44: 20-1 Locality name
A45: 15-2 State
A46: 15-2 Employer's state ID no.
A47: 16-2 State Wages, tips, etc.
A48: 17-2 State income tax
A49: 18-2 Local wages, tips, etc.
A50: 19-2 Local income tax
A51: 20-2 Locality name

Sheet 1099-Ints
A1: Statement Number | B1: 1
A2: Payer's name | B2: Wells Fargo
A3: Street address | B3: 1234 Main St
A4: APT/Suite | B4: 3000
A5: City or town | B5: Provo
A6: State/Province | B6: UT
A7: Country | B7: US
A8: ZIP/Postal code | B8: 84601
A9: Telephone no. | B9: (801) 222-2222
A10: Payer's federal ID no. | B10: 12-123456789
A11: Recipient's ID no. | B11: 222-22-2222
A12: Recipient's name | B12: Jane B. Doe
A13: Street address | B13: 123 State ST.
A14: APT/Suite
A15: City or town | B15: Provo
A16: State/Province | B16: UT
A17: Country | B17: US
A18: ZIP/Postal code | B18: 84606
A19: Telephone no.
A20: FATCA | B20: NO
A21: Account number
A22: Payer's RTN
A23: 1 Interest income | B23: 1000
A24: 2 Early wihdrawal penalty | B24: 0
A25: 3 Interest on U.S. savings bonds and treas. Obligations | B25: 0
A26: 4 Federal income tax withheld | B26: 100
A27: 5 Investment expenses | B27: 0
A28: 6 Foreign tax paid | B28: 0
A29: 7 Foreign country or U.S. possession | B29: 0
A30: 8 Tax-exempt interest | B30: 0
A31: 9 Specified private activity bond interest | B31: 0
A32: 10 Market discount | B32: 0
A33: 11 Bond premium | B33: 0
A34: 13 Bond premium on tax-exempt bond | B34: 0
A35: 14 Tax-exempt and tax credit bond CUSIP no.
A36: 15-1 State
A37: 16-1 State ID no.
A38: 17-1 State tax withheld
A39: 15-2 State
A40: 16-2 State ID no.
A41: 17-2 State tax withheld

Sheet 1098-Ts (hidden)
A1: Statement Number | B1: 2 | C1: 1
A2: Filer's name | B2: UTAH VALLEY UNIVERSITY | C2: BRIGHAM YOUNG UNIVERSITY
A3: 1-Street address | B3: 321 UNIVERSITY PKWY | C3: 123 UNIVERSITY PLACE
A4: 1-APT/Suite
A5: 1-City or town | B5: OREM | C5: PROVO
A6: 1-State/Province | B6: UT | C6: UT
A7: 1-Country | B7: US | C7: US
A8: 1-ZIP/Postal code | B8: 84058 | C8: 84602
A9: 1-Telephone no. | B9: 8018631234 | C9: 8014221234
A10: Filer's federal ID no. | B10: 870280648 | C10: 870217280
A11: Student's SSN | B11: 222222222 | C11: 111111111
A12: Student's name | B12: JANE B. DOE | C12: JOHN A DOE
A13: Stree address | B13: 123 STATE ST. | C13: 123 STATE ST.
A14: APT/Suite | B14: 14 | C14: 14
A15: City or town | B15: PROVO | C15: PROVO
A16: State/Province | B16: UT | C16: UT
A17: Country | B17: US | C17: US
A18: ZIP/Postal code | B18: 84606 | C18: 84606
A19: Service provider/acct. no. | C19: 412760676
A20: 1 Payments received for qualified tuition and related expenses
A21: 2 Amounts billed for qualified tuition and related expenses | B21: 5301 | C21: 4719
A22: 3 Changed reporting method? | B22: NO | C22: NO
A23: 4 Adjustments made for prior year
A24: 5 Scholarships or grants | C24: 2356
A25: 6 Adjustments to scholarships or grants for a prior year
A26: Box 7 checked? | B26: YES | C26: YES
A27: 8 At least half-time student? | B27: YES | C27: YES
A28: 9 Graduate student? | B28: NO | C28: NO
A29: 10 Ins. Contract reimb./refund
A30: Question 1 | B30: NO | C30: NO
A31: Question 2 | B31: YES | C31: YES
A32: Question 3 | B32: NO | C32: NO
A33: Question 4 | B33: NO | C33: NO
A34: Additional Education Expenses | B34: 800

Sheet States_Countries (hidden)
B1: States | D1: Countries | F1: W2, Box 12 Codes | H1: Depency Relationships
B3: AK | D3: US | F3: A | H3: Son
B4: AL | D4: AA | F4: B | H4: Daughter
B5: AR | D5: AC | F5: C | H5: Father
B6: AS | D6: AE | F6: D | H6: Mother
B7: AZ | D7: AF | F7: E | H7: Brother
B8: CA | D8: AG | F8: F | H8: Sister
B9: CO | D9: AJ | F9: G | H9: Grandparent
B10: CT | D10: AL | F10: H
B11: DC | D11: AM | F11: J
B12: DE | D12: AN | F12: K
B13: FL | D13: AO | F13: L
B14: FM | D14: AQ | F14: M
B15: GA | D15: AR | F15: N
B16: GU | D16: AS | F16: P
B17: HI | D17: AT | F17: Q
B18: IA | D18: AU | F18: R
B19: ID | D19: AV | F19: S
B20: IL | D20: AX | F20: T
B21: IN | D21: AY | F21: V
B22: KS | D22: BA | F22: W
B23: KY | D23: BB | F23: Y
B24: LA | D24: BC | F24: Z
B25: MA | D25: BD | F25: AA
B26: MD | D26: BE | F26: BB
B27: ME | D27: BF | F27: DD
B28: MI | D28: BG | F28: EE
B29: MN | D29: BH
B30: MO | D30: BK
B31: MP | D31: BL
B32: MS | D32: BM
B33: MT | D33: BN
B34: NC | D34: BO
B35: ND | D35: BP
B36: NE | D36: BQ
B37: NH | D37: BR
B38: NJ | D38: BT
B39: NM | D39: BU
B40: NV | D40: BV
B41: NY | D41: BX
B42: OH | D42: BY
B43: OK | D43: CA
B44: OR | D44: CB
B45: PA | D45: CD
B46: PR | D46: CE
B47: RI | D47: CF
B48: SC | D48: CG
B49: SD | D49: CH
B50: TN | D50: CI
B51: TX | D51: CJ
B52: UT | D52: CK
B53: VA | D53: CM
B54: VI | D54: CN
B55: VT | D55: CO
B56: WA | D56: CQ
B57: WI | D57: CR
B58: WV | D58: CS
B59: WY | D59: CT
D60: CU
D61: CV
D62: CW
D63: CY
D64: DA
D65: DJ
D66: DO
D67: DQ
D68: DR
D69: DX
D70: EC
D71: EG
D72: EI
D73: EK
D74: EN
D75: ER
D76: ES
D77: ET
D78: EZ
D79: FI
D80: FJ
D81: FK
D82: FM
D83: FO
D84: FP
D85: FQ
D86: FR
D87: FS
D88: GA
D89: GB
D90: GG
D91: GH
D92: GI
D93: GJ
D94: GK
D95: GL
D96: GM
D97: GQ
D98: GR
D99: GT
D100: GV
D101: GY
D102: HA
D103: HK
D104: HM
D105: HO
D106: HQ
D107: HR
D108: HU
D109: IC
D110: ID
D111: IM
D112: IN
D113: IO
D114: IP
D115: IR
D116: IS
D117: IT
D118: IV
D119: IZ
D120: JA
D121: JE
D122: JM
D123: JN
D124: JO
D125: JQ
D126: KE
D127: KG
D128: KN
D129: KQ
D130: KR
D131: KS
D132: KT
D133: KU
D134: KV
D135: KZ
D136: LA
D137: LE
D138: LG
D139: LH
D140: LI
D141: LO
D142: LQ
D143: LS
D144: LT
D145: LU
D146: LY
D147: MA
D148: MC
D149: MD
D150: MG
D151: MH
D152: MI
D153: MJ
D154: MK
D155: ML
D156: MN
D157: MO
D158: MP
D159: MQ
D160: MR
D161: MT
D162: MU
D163: MV
D164: MX
D165: MY
D166: MZ
D167: NC
D168: NE
D169: NF
D170: NG
D171: NH
D172: NI
D173: NL
D174: NN
D175: NO
D176: NP
D177: NR
D178: NS
D179: NU
D180: NZ
D181: OC
D182: OD
D183: PA
D184: PC
D185: PE
D186: PF
D187: PG
D188: PK
D189: PL
D190: PM
D191: PO
D192: PP
D193: PS
D194: PU
D195: QA
D196: RI
D197: RM
D198: RN
D199: RO
D200: RP
D201: RQ
... 60 more rows

Sheet Tax Brackets (hidden)
B2: S | I2: MFJ/QW
B3: If taxable income is over— | C3: but not over— | E3: Plus | F3: the tax is: | I3: If taxable income is over— | J3: but not over— | L3: Plus | M3: the tax is:
B4: 0 | C4: 9075 | D4: 0.1 | E4: 0 | F4: 10% of the amount over $0 | I4: 0 | J4: 18150 | K4: 0.1 | L4: 0 | M4: 10% of the amount over $0
B5: 9075 | C5: 36900 | D5: 0.15 | E5: =LEFT(F5,FIND(".",F5)+2) -> $907.50 | F5: $907.50 plus 15% of the amount over $9,075 | I5: 18150 | J5: 73800 | K5: 0.15 | L5: =LEFT(M5,FIND(",",M5)+3) -> $1,815 | M5: $1,815 plus 15% of the amount over $18,150
B6: 36900 | C6: 89350 | D6: 0.25 | E6: $5,081.25 | F6: $5,081.25 plus 25% of the amount over $36,900 | I6: 73800 | J6: 148850 | K6: 0.25 | L6: $10,162 | M6: $10,162.50 plus 25% of the amount over $73,800
B7: 89350 | C7: 186350 | D7: 0.28 | E7: $18,193.75 | F7: $18,193.75 plus 28% of the amount over $89,350 | I7: 148850 | J7: 226850 | K7: 0.28 | L7: $28,925 | M7: $28,925 plus 28% of the amount over $148,850
B8: 186350 | C8: 405100 | D8: 0.33 | E8: $45,353.75 | F8: $45,353.75 plus 33% of the amount over $186,350 | I8: 226850 | J8: 405100 | K8: 0.33 | L8: $50,765 | M8: $50,765 plus 33% of the amount over $226,850
B9: 405100 | C9: 406750 | D9: 0.35 | E9: $117,541.25 | F9: $117,541.25 plus 35% of the amount over $405,100 | I9: 405100 | J9: 457600 | K9: 0.35 | L9: $109,587 | M9: $109,587.50 plus 35% of the amount over $405,100
B10: 406750 | C10: no limit | D10: 0.396 | E10: $118,118.75 | F10: $118,118.75 plus 39.6% of the amount over $406,750 | I10: 457600 | J10: no limit | K10: 0.396 | L10: $127,962 | M10: $127,962.50 plus 39.6% of the amount over $457,600
B12: MFS | I12: HoH
B13: If taxable income is over— | C13: but not over— | E13: Plus | F13: the tax is: | I13: If taxable income is over— | J13: but not over— | L13: Plus | M13: the tax is:
B14: 0 | C14: 9075 | D14: 0.1 | E14: 0 | F14: 10% of the amount over $0 | I14: 0 | J14: 12950 | K14: 0.1 | L14: 0 | M14: 10% of the amount over $0
B15: 9075 | C15: 36900 | D15: 0.15 | E15: =LEFT(F15,FIND(".",F15)+2) -> $907.50 | F15: $907.50 plus 15% of the amount over $9,075 | I15: 12950 | J15: 49400 | K15: 0.15 | L15: =LEFT(M15,FIND(",",M15)+3) -> $1,295 | M15: $1,295 plus 15% of the amount over $12,950
B16: 36900 | C16: 74425 | D16: 0.25 | E16: $5,081.25 | F16: $5,081.25 plus 25% of the amount over $36,900 | I16: 49400 | J16: 127550 | K16: 0.25 | L16: $6,762 | M16: $6,762.50 plus 25% of the amount over $49,400
B17: 74425 | C17: 113425 | D17: 0.28 | E17: $14,462.50 | F17: $14,462.50 plus 28% of the amount over $74,425 | I17: 127550 | J17: 206600 | K17: 0.28 | L17: $26,300 | M17: $26,300 plus 28% of the amount over $127,550
B18: 113425 | C18: 202550 | D18: 0.33 | E18: $25,382.50 | F18: $25,382.50 plus 33% of the amount over $113,425 | I18: 206600 | J18: 405100 | K18: 0.33 | L18: $48,434 | M18: $48,434 plus 33% of the amount over $206,600
B19: 202550 | C19: 228800 | D19: 0.35 | E19: $54,793.75 | F19: $54,793.75 plus 35% of the amount over $202,550 | I19: 405100 | J19: 432200 | K19: 0.35 | L19: $113,939 | M19: $113,939 plus 35% of the amount over $405,100
B20: 228000 | C20: no limit | D20: 0.396 | E20: $63,981.25 | F20: $63,981.25 plus 39.6% of the amount over $228,800 | I20: 432200 | J20: no limit | K20: 0.396 | L20: $123,424 | M20: $123,424 plus 39.6% of the amount over $432,200

Sheet Deductions_Exemptions (hidden)
A3: Standard Deduction
A4: Single | C4: 6200
A5: Head of Household | C5: 9100
A6: Married Filing Jointly | C6: 12400
A7: Married Filing Separately | C7: 6200
A10: Personal Exemption | C10: 3950
